fUST/lending_fUST_20250329
["ID","MTS","AMOUNT","RATE_DAILY","PERIOD"]
[356800744,1743222647755,-1344.72,0.00024657,2]
[356800745,1743222647764,-500.0,0.00024657,2]
[356800746,1743222647774,-896.0,0.00024657,2]
[356800747,1743222647783,-500.0,0.00024657,2]
[356800748,1743222647793,-500.0,0.00024657,2]
[356800749,1743222647803,-3628.72,0.00024657,2]
[356800750,1743222647813,-631.67673595,0.00024657,2]
[356800751,1743222647823,-500.0,0.00024657,2]
[356800752,1743222647833,-500.0,0.00024657,2]
[356800753,1743222647842,-1380.68,0.00024657,2]
[356800754,1743222647852,-1965.61,0.00024657,2]
[356800755,1743222647862,-500.0,0.00024657,2]
[356800756,1743222647872,-500.0,0.00024657,2]
[356800757,1743222647881,-784.78,0.00024657,2]
[356800758,1743222647891,-500.0,0.00024657,2]
[356800759,1743222647901,-769.56,0.00024657,2]
[356800760,1743222647911,-500.0,0.00024657,2]
[356800761,1743222647921,-724.35,0.00024657,2]
[356800762,1743222647930,-504.59002511,0.00024657,2]
[356800763,1743222647941,-500.0,0.00024657,2]
[356800764,1743222647951,-1288.44,0.00024657,2]
[356800765,1743222647961,-685.87,0.00024657,2]
[356800766,1743222647971,-500.0,0.00024657,2]
[356800767,1743222647980,-500.0,0.00024657,2]
[356800768,1743222647990,-640.43,0.00024657,2]
[356800769,1743222648000,-500.0,0.00024657,2]
[356800770,1743222648009,-615.16,0.00024657,2]
[356800771,1743222648019,-500.0,0.00024657,2]
[356800772,1743222648028,-500.0,0.00024657,2]
[356800773,1743222648038,-500.0,0.00024657,2]
[356800774,1743222648052,-512.62,0.00024657,2]
[356800775,1743222648063,-1685.18,0.00024657,2]
[356800776,1743222648072,-1102.23,0.00024657,2]
[356800777,1743222648082,-500.0,0.00024657,2]
[356800778,1743222648092,-1399.93,0.00024657,2]
[356800779,1743222648103,-763.45,0.00024657,2]
[356800780,1743222648115,-160.0,0.00024657,7]
[356800781,1743222648125,-500.0,0.00024657,2]
[356800782,1743222648137,-540.97,0.00024657,2]
[356800783,1743222648147,-178.37489498,0.00024657,2]
[356800784,1743222648157,-501.89070575,0.00024657,2]
[356800785,1743222648167,-534.04690118,0.00024657,2]
[356800786,1743222648177,-1097.72,0.00024657,2]
[356800787,1743222648186,-500.0,0.00024657,2]
[356800788,1743222648196,-910.75,0.00024657,2]
[356800789,1743222648206,-565.7857778,0.00024657,2]
[356800790,1743222648216,-548.78124375,0.00024657,2]
[356800791,1743222648228,-513.02,0.00024657,2]
[356800792,1743222648238,-502.96984523,0.00024657,2]
[356800793,1743222648249,-1381.1,0.00024657,2]
[356800794,1743222648259,-500.0,0.00024657,2]
[356800795,1743222648269,-500.0,0.00024657,2]
[356800796,1743222648279,-838.68,0.00024657,2]
[356800797,1743222648289,-1131.07,0.00024657,2]
[356800798,1743222648300,-160.0,0.00024657,7]
[356800799,1743222648309,-500.0,0.00024657,2]
[356800800,1743222648319,-500.0,0.00024657,2]
[356800801,1743222648328,-644.12,0.00024657,2]
[356800802,1743222648338,-583.13838451,0.00024657,2]
[356800803,1743222648347,-500.0,0.00024657,2]
[356800804,1743222648357,-5477.81,0.00024657,2]
[356800805,1743222648367,-500.0,0.00024657,2]
[356800806,1743222648376,-500.0,0.00024657,2]
[356800807,1743222648386,-500.0,0.00024657,2]
[356800808,1743222648395,-513.41,0.00024657,2]
[356800809,1743222648405,-245.12903923,0.00024657,2]
[356800810,1743222648415,-7386.14,0.00024657,2]
[356800811,1743222648425,-283.49074835,0.00024657,2]
[356800812,1743222648444,-394.41925165,0.00024657,2]
[356800813,1743222648454,-1682.66,0.00024657,2]
[356800814,1743222648464,-500.0,0.00024657,2]
[356800815,1743222648473,-6720.12,0.00024657,2]
[356800816,1743222648483,-943.28,0.00024657,2]
[356800817,1743222648493,-500.0,0.00024657,2]
[356800818,1743222648503,-500.0,0.00024657,2]
[356800819,1743222648512,-1510.92,0.00024657,2]
[356800820,1743222648522,-580.07,0.00024657,2]
[356800821,1743222648532,-1532.05,0.00024657,2]
[356800822,1743222648542,-500.0,0.00024657,2]
[356800823,1743222648553,-8248.98,0.00024657,2]
[356800824,1743222648562,-1104.12,0.00024657,2]
[356800825,1743222648572,-2106.81,0.00024657,2]
[356800826,1743222648582,-500.0,0.00024657,2]
[356800827,1743222648592,-500.0,0.00024657,2]
[356800828,1743222648602,-515.7800167,0.00024657,2]
[356800829,1743222648612,-500.0,0.00024657,2]
[356800830,1743222648621,-533.17377615,0.00024657,2]
[356800831,1743222648630,-500.0,0.00024657,2]
[356800832,1743222648641,-2475.65,0.00024657,2]
[356800833,1743222648650,-555.22,0.00024657,2]
[356800834,1743222648659,-1260.67,0.00024657,2]
[356800835,1743222648669,-828.51,0.00024657,2]
[356800836,1743222648678,-2979.64,0.00024657,2]
[356800837,1743222648687,-500.0,0.00024657,2]
[356800838,1743222648697,-581.4,0.00024657,2]
[356800839,1743222648706,-535.55600026,0.00024657,2]
[356800840,1743222648716,-500.0,0.00024657,2]
[356800841,1743222648726,-500.0,0.00024657,2]
[356800842,1743222648736,-500.0,0.00024657,2]
[356800843,1743222648745,-188.61496713,0.00024657,2]
[356800844,1743222648755,-2178.07,0.00024657,2]
[356800845,1743222648765,-500.0,0.00024657,2]
[356800846,1743222648775,-500.0,0.00024657,2]
[356800847,1743222648784,-264.08742079,0.00024657,2]
[356800848,1743222648795,-500.0,0.00024657,2]
[356800849,1743222648804,-615.05,0.00024657,2]
[356800850,1743222648815,-506.68479477,0.00024657,2]
[356800851,1743222648825,-3451.13,0.00024657,2]
[356800852,1743222648835,-500.0,0.00024657,2]
[356800853,1743222648845,-520.82,0.00024657,2]
[356800854,1743222648855,-2139.22,0.00024657,2]
[356800855,1743222648864,-500.0,0.00024657,2]
[356800856,1743222648873,-500.0,0.00024657,2]
[356800857,1743222648883,-500.0,0.00024657,2]
[356800858,1743222648892,-500.0,0.00024657,2]
[356800859,1743222648903,-1519.1,0.00024657,2]
[356800860,1743222648913,-500.0,0.00024657,2]
[356800861,1743222648922,-544.23299438,0.00024657,2]
[356800862,1743222648932,-896.08,0.00024657,2]
[356800863,1743222648941,-1239.8,0.00024657,2]
[356800864,1743222648951,-500.0,0.00024657,2]
[356800865,1743222648968,-750.54,0.00024657,2]
[356800866,1743222648978,-1411.68,0.00024657,2]
[356800867,1743222648988,-3629.83,0.00024657,2]
[356800868,1743222648998,-849.08,0.00024657,2]
[356800869,1743222649008,-1718.19,0.00024657,2]
[356800870,1743222649023,-500.0,0.00024657,2]
[356800871,1743222649033,-500.0,0.00024657,2]
[356800872,1743222649043,-1000.0,0.00024657,14]
[356800873,1743222649055,-1000.0,0.00024657,14]
[356800874,1743222649064,-3491.51,0.00024657,2]
[356800875,1743222649074,-1000.0,0.00024657,14]
[356800876,1743222649084,-1000.0,0.00024657,14]
[356800877,1743222649095,-500.0,0.00024657,2]
[356800878,1743222649105,-500.0,0.00024657,2]
[356800879,1743222649115,-1000.0,0.00024657,14]
[356800880,1743222649125,-784.15,0.00024657,2]
[356800881,1743222649135,-500.0,0.00024657,2]
[356800882,1743222649145,-1000.0,0.00024657,14]
[356800883,1743222649154,-500.0,0.00024657,2]
[356800884,1743222649164,-1000.0,0.00024657,14]
[356800885,1743222649173,-500.0,0.00024657,2]
[356800886,1743222649183,-500.0,0.00024657,2]
[356800887,1743222649193,-1000.0,0.00024657,14]
[356800888,1743222649203,-1000.0,0.00024657,14]
[356800889,1743222649213,-4368.54,0.00024657,2]
[356800890,1743222649222,-788.33667464,0.00024657,14]
[356800891,1743222649232,-5185.99,0.00024657,2]
[356800892,1743222649241,-500.0,0.00024657,2]
[356800893,1743222649251,-1876.87,0.00024657,2]
[356800894,1743222649260,-500.0,0.00024657,2]
[356800895,1743222649270,-152.991515,0.00024657,7]
[356800896,1743222649279,-609.69227135,0.00024657,2]
[356800897,1743222649289,-500.0,0.00024657,2]
[356800898,1743222649299,-679.01,0.00024657,2]
[356800899,1743222649308,-3124.13,0.00024657,2]
[356800900,1743222649318,-500.0,0.00024657,2]
[356800901,1743222649327,-540.11623778,0.00024657,2]
[356800902,1743222649337,-10835.54,0.00024657,2]
[356800903,1743222649347,-475.83529849,0.00024657,2]
[356800904,1743222649356,-500.0,0.00024657,2]
[356800905,1743222649366,-1005.57,0.00024657,2]
[356800906,1743222649375,-500.0,0.00024657,2]
[356800907,1743222649385,-231.6420877,0.00024657,2]
[356800908,1743222649395,-1275.38,0.00024657,2]
[356800909,1743222649403,-5316.23,0.00024657,2]
[356800910,1743222649413,-500.0,0.00024657,2]
[356800911,1743222649422,-500.0,0.00024657,2]
[356800912,1743222649431,-500.0,0.00024657,2]
[356800913,1743222649441,-505.34826254,0.00024657,2]
[356800914,1743222649451,-3677.08,0.00024657,2]
[356800915,1743222649461,-576.963,0.00024657,7]
[356800916,1743222649471,-576.963,0.00024657,7]
[356800917,1743222649480,-576.963,0.00024657,7]
[356800918,1743222649490,-604.49,0.00024657,2]
[356800919,1743222649499,-576.963,0.00024657,7]
[356800920,1743222649509,-576.963,0.00024657,7]
[356800921,1743222649519,-1344.71,0.00024657,2]
[356800922,1743222649529,-576.963,0.00024657,7]
[356800923,1743222649538,-500.0,0.00024657,2]
[356800924,1743222649548,-576.963,0.00024657,7]
[356800925,1743222649558,-500.0,0.00024657,2]
[356800926,1743222649567,-576.963,0.00024657,7]
[356800927,1743222649576,-7945.05,0.00024657,2]
[356800928,1743222649585,-576.963,0.00024657,7]
[356800929,1743222649595,-500.0,0.00024657,2]
[356800930,1743222649604,-576.963,0.00024657,7]
[356800931,1743222649613,-576.963,0.00024657,7]
[356800932,1743222649622,-576.963,0.00024657,7]
[356800933,1743222649631,-576.963,0.00024657,7]
[356800934,1743222649642,-853.55,0.00024657,2]
[356800935,1743222649651,-576.963,0.00024657,7]
[356800936,1743222649661,-576.963,0.00024657,7]
[356800937,1743222649670,-576.962992,0.00024657,7]
[356800938,1743222649679,-1298.77,0.00024657,2]
[356800939,1743222649689,-592.11,0.00024657,2]
[356800940,1743222649699,-500.0,0.00024657,2]
[356800941,1743222649708,-895.97,0.00024657,2]
[356800942,1743222649718,-4192.89491938,0.00024657,2]
[356800943,1743222649782,-25.84414423,0.00024657,2]
[356800958,1743222903158,200.0013254,0.00025,120]
[356800964,1743222934806,173.772182,0.00013699,2]
[356800966,1743222944234,188.911522,0.00023804,120]
[356800985,1743223551116,-363.5392796,0.00022868,2]
[356800986,1743223551138,-1049.15151353,0.00023344,2]
[356800989,1743223635089,-273.87402547,0.00023435,2]
[356800991,1743223644097,-26.12597453,0.00023435,2]
[356800992,1743223644122,-500.0,0.00023436,2]
[356800993,1743223644148,-500.0,0.00023436,2]
[356800994,1743223644172,-500.0,0.00023436,2]
[356800995,1743223644201,-500.0,0.00023436,2]
[356800996,1743223644225,-500.0,0.00023436,2]
[356800997,1743223644250,-500.0,0.00023436,2]
[356800998,1743223644274,-290.33647828,0.00023436,2]
[356800999,1743223644299,-500.0,0.00023436,2]
[356801000,1743223644321,-500.0,0.00023436,2]
[356801001,1743223644346,-500.0,0.00023436,2]
[356801002,1743223644368,-500.0,0.00023436,2]
[356801003,1743223644393,-500.0,0.00023436,2]
[356801004,1743223644417,-500.0,0.00023436,2]
[356801005,1743223644441,-500.0,0.00023436,2]
[356801006,1743223644465,-500.0,0.00023436,2]
[356801007,1743223644490,-500.0,0.00023436,2]
[356801008,1743223644514,-500.0,0.00023436,2]
[356801009,1743223644540,-500.0,0.00023436,2]
[356801010,1743223644565,-500.0,0.00023436,2]
[356801011,1743223644591,-500.0,0.00023436,2]
[356801012,1743223644616,-500.0,0.00023436,2]
[356801013,1743223644638,-500.0,0.00023436,2]
[356801014,1743223644663,-500.0,0.00023436,2]
[356801015,1743223644687,-500.0,0.00023436,2]
[356801016,1743223644710,-500.0,0.00023436,2]
[356801017,1743223644732,-500.0,0.00023436,2]
[356801018,1743223644755,-500.0,0.00023436,2]
[356801019,1743223644781,-500.0,0.00023436,2]
[356801020,1743223644806,-500.0,0.00023436,2]
[356801021,1743223644831,-307.16707376,0.00023436,2]
[356801022,1743223644853,-500.0,0.00023436,2]
[356801023,1743223644876,-500.0,0.00023436,2]
[356801024,1743223644898,-500.0,0.00023436,2]
[356801025,1743223644920,-365.59780476,0.00023436,2]
[356801026,1743223644946,-500.0,0.00023436,2]
[356801027,1743223644971,-500.0,0.00023436,2]
[356801028,1743223644995,-500.0,0.00023436,2]
[356801029,1743223645021,-500.0,0.00023436,2]
[356801030,1743223645046,-500.0,0.00023436,2]
[356801031,1743223645074,-264.50366386,0.00023436,2]
[356801032,1743223645097,-16241.14925693,0.00023437,2]
[356801033,1743223645119,-20896.01793929,0.0002344,2]
[356801049,1743223757097,-500.0,0.00023336,2]
[356801050,1743223757118,-4003.98206071,0.0002344,2]
[356801051,1743223757156,-52.75688965,0.00023444,2]
[356801052,1743223761121,-410.31478535,0.00023444,2]
[356801053,1743223761143,-189.65924929,0.00023756,2]
[356801054,1743223761164,-162.28058256,0.00023804,2]
[356801055,1743223765193,-26.63093944,0.00023804,2]
[356801056,1743223765215,-300.0,0.00023989,2]
[356801057,1743223765236,-6769.68077961,0.0002399,2]
[356801058,1743223765258,-207.3858755,0.00024,2]
[356801059,1743223765279,-1008.94660545,0.00024,2]
[356801119,1743223832745,-30.43044727,0.00024,2]
[356801121,1743223832756,-107.79121548,0.00024,2]
[356801122,1743223832766,-162.2900577,0.00024,2]
[356801124,1743223832775,-59.72371016,0.0002411,2]
[356801126,1743223832787,-99.16947724,0.0002411,2]
[356801128,1743223832796,-156.4135424,0.0002411,2]
[356801129,1743223832806,-262.12908646,0.0002434,2]
[356801130,1743223832815,-300.0,0.00024439,2]
[356801131,1743223832825,-4100.3193903,0.0002444,2]
[356801132,1743223832834,-164.54692932,0.00024457,2]
[356801133,1743223832843,-1220.66671806,0.00024511,2]
[356801134,1743223832853,-2046.76014822,0.00024542,2]
[356801135,1743223832862,-500.0,0.00024555,2]
[356801136,1743223832872,-500.0,0.00024555,2]
[356801137,1743223832882,-421.14849759,0.00024555,2]
[356801138,1743223832892,-619.07452641,0.00024555,2]
[356801139,1743223832902,-519.31373106,0.00024556,2]
[356801140,1743223832912,-3958.70073256,0.00024556,2]
[356801158,1743223839072,-222.81,0.00024547,3]
[356801159,1743223839082,-1386.51624552,0.00024556,2]
[356801160,1743223839091,-99.59015872,0.00024556,2]
[356801161,1743223839103,-287.67211777,0.00024556,2]
[356801162,1743223839113,-358.97863349,0.00024557,2]
[356801189,1743223843601,-156.96564368,0.00024557,2]
[356801196,1743223846453,-3030.93200944,0.00024557,2]
[356801197,1743223846466,-7099.10553006,0.00024557,2]
[356801198,1743223846478,-2046.54322711,0.00024557,2]
[356801199,1743223846491,-19260.29454545,0.00024557,2]
[356801208,1743224294978,176.892974,0.00013699,2]
[356801216,1743224854568,-152.68122,0.00023075,2]
[356801217,1743224949119,-294.0,0.00023075,2]
[356801218,1743224951253,-6.0,0.00023075,2]
[356801219,1743224951280,-500.0,0.00023076,2]
[356801220,1743224951304,-500.0,0.00023076,2]
[356801221,1743224951331,-500.0,0.00023076,2]
[356801222,1743224951356,-500.0,0.00023076,2]
[356801223,1743224951379,-637.2877682,0.00023076,2]
[356801224,1743224951404,-500.0,0.00023076,2]
[356801225,1743224951429,-500.0,0.00023076,2]
[356801226,1743224951454,-500.0,0.00023076,2]
[356801227,1743224951478,-500.0,0.00023076,2]
[356801228,1743224951502,-500.0,0.00023076,2]
[356801229,1743224951525,-500.0,0.00023076,2]
[356801230,1743224951549,-500.0,0.00023076,2]
[356801231,1743224951573,-500.0,0.00023076,2]
[356801232,1743224951598,-500.0,0.00023076,2]
[356801233,1743224951621,-220.82594887,0.00023076,2]
[356801234,1743224951644,-500.0,0.00023076,2]
[356801235,1743224951668,-500.0,0.00023076,2]
[356801236,1743224951691,-500.0,0.00023076,2]
[356801237,1743224951714,-500.0,0.00023076,2]
[356801238,1743224951736,-500.0,0.00023076,2]
[356801239,1743224951760,-500.0,0.00023076,2]
[356801240,1743224951783,-550.0,0.00023076,2]
[356801241,1743224951807,-500.0,0.00023076,2]
[356801242,1743224951832,-500.0,0.00023076,2]
[356801243,1743224951853,-500.0,0.00023076,2]
[356801244,1743224951873,-500.0,0.00023076,2]
[356801245,1743224951894,-373.41145406,0.00023076,2]
[356801246,1743224951915,-24900.0,0.00023077,2]
[356801247,1743224951941,-231.535838,0.0002318,2]
[356801248,1743224951963,-500.0,0.0002334,2]
[356801249,1743224951986,-1323.00630742,0.000238,2]
[356801250,1743224952009,-493.64078787,0.000238,2]
[356801251,1743224952030,-271.08359354,0.00023889,2]
[356801252,1743224952054,-2725.07341147,0.0002389,3]
[356801253,1743224952074,-3440.98809863,0.0002389,3]
[356801254,1743224952097,-323925.2695783,0.0002389,2]
[356801255,1743224963086,-4556.73895036,0.0002389,2]
[356801256,1743224973094,-500.0,0.00022976,2]
[356801257,1743224973119,-12412.85991391,0.0002389,2]
[356801294,1743225032693,-300.0,0.00023876,2]
[356801296,1743225032709,-300.0,0.00023889,2]
[356801298,1743225032726,-29105.13155743,0.0002389,2]
[356801300,1743225032740,-846.29096633,0.000239,2]
[356801303,1743225032756,-189.75851548,0.00023989,2]
[356801305,1743225032770,-1362.53670574,0.0002399,3]
[356801308,1743225032786,-18045.99355364,0.0002399,2]
[356801314,1743225032840,-9042.05244059,0.0002399,2]
[356801319,1743225032878,-500.0,0.00023889,2]
[356801322,1743225032894,-27252.52152533,0.0002399,2]
[356801325,1743225032914,-521.61715114,0.0002399,2]
[356801445,1743225038549,-196.75843876,0.00023889,2]
[356801446,1743225038563,-500.0,0.00023889,2]
[356801447,1743225038577,-3776.50304835,0.0002399,2]
[356801448,1743225038589,-150.0,0.00024219,2]
[356801449,1743225038603,-154.8524317,0.000243,2]
[356801450,1743225038617,-210.3095847,0.00024339,2]
[356801451,1743225038630,-5000.0,0.0002434,2]
[356801452,1743225038643,-219.60884508,0.000244,2]
[356801453,1743225038657,-50095.38366311,0.00024556,3]
[356801454,1743225038669,-160.0,0.00024556,3]
[356801455,1743225038683,-835.30152125,0.00024556,3]
[356801456,1743225038695,-160.0,0.00024556,3]
[356801457,1743225038709,-160.0,0.00024556,3]
[356801458,1743225038722,-418.47884548,0.00024556,3]
[356801459,1743225038735,-1323.00630742,0.00024557,2]
[356801460,1743225038748,-200.00000001,0.0002456,2]
[356801461,1743225038761,-152.0,0.00024584,2]
[356801462,1743225038775,-3000.0,0.000246,2]
[356801463,1743225038788,-3000.0,0.000246,2]
[356801464,1743225038801,-400.0,0.000246,2]
[356801465,1743225038813,-5435.942165,0.000246,5]
[356801466,1743225038826,-5435.94216491,0.000246,5]
[356801467,1743225038839,-5435.94216491,0.000246,5]
[356801468,1743225038855,-5435.94216491,0.000246,5]
[356801469,1743225038874,-5435.94216491,0.000246,5]
[356801470,1743225038889,-3000.0,0.0002461,2]
[356801471,1743225038898,-3000.0,0.0002461,2]
[356801472,1743225038908,-3000.0,0.0002462,2]
[356801473,1743225038918,-3000.0,0.0002462,2]
[356801474,1743225038928,-3000.0,0.0002463,2]
[356801475,1743225038938,-3000.0,0.0002463,2]
[356801476,1743225038954,-3000.0,0.0002464,2]
[356801477,1743225038963,-3000.0,0.0002464,2]
[356801478,1743225038973,-3000.0,0.0002465,2]
[356801479,1743225038983,-3000.0,0.0002465,2]
[356801480,1743225038994,-362.50694536,0.00024656,2]
[356801481,1743225039003,-1720.49404931,0.00024657,3]
[356801482,1743225039013,-500.0,0.00024657,2]
[356801483,1743225039389,-500.0,0.00024657,2]
[356801484,1743225039412,-524.62628806,0.00024657,2]
[356801485,1743225039422,-500.0,0.00024657,2]
[356801486,1743225039434,-500.0,0.00024657,2]
[356801487,1743225039444,-500.0,0.00024657,2]
[356801488,1743225039454,-500.0,0.00024657,2]
[356801489,1743225039463,-500.0,0.00024657,2]
[356801490,1743225039473,-500.55533626,0.00024657,2]
[356801491,1743225039482,-500.0,0.00024657,2]
[356801492,1743225039492,-500.0,0.00024657,2]
[356801493,1743225039501,-500.0,0.00024657,2]
[356801494,1743225039511,-500.0,0.00024657,2]
[356801495,1743225039521,-500.0,0.00024657,2]
[356801496,1743225039531,-500.0,0.00024657,2]
[356801497,1743225039541,-500.0,0.00024657,2]
[356801498,1743225039551,-500.0,0.00024657,2]
[356801499,1743225039560,-500.0,0.00024657,2]
[356801500,1743225039569,-500.0,0.00024657,2]
[356801501,1743225039579,-503.73885011,0.00024657,2]
[356801502,1743225039589,-500.0,0.00024657,2]
[356801503,1743225039600,-464.47172968,0.00024657,2]
[356801504,1743225039609,-500.0,0.00024657,2]
[356801505,1743225039619,-500.0,0.00024657,2]
[356801506,1743225039629,-500.0,0.00024657,2]
[356801507,1743225039639,-500.0,0.00024657,2]
[356801508,1743225039649,-500.0,0.00024657,2]
[356801509,1743225039658,-358.42281858,0.00024657,2]
[356801510,1743225039669,-500.0,0.00024657,2]
[356801511,1743225039678,-500.0,0.00024657,2]
[356801512,1743225039688,-1056.3,0.00024657,2]
[356801513,1743225039697,-500.0,0.00024657,2]
[356801514,1743225039707,-500.0,0.00024657,2]
[356801515,1743225039718,-500.0,0.00024657,2]
[356801516,1743225039727,-500.0,0.00024657,2]
[356801517,1743225039737,-872.8,0.00024657,2]
[356801518,1743225039746,-1323.55,0.00024657,2]
[356801519,1743225039756,-500.0,0.00024657,2]
[356801520,1743225039766,-500.0,0.00024657,2]
[356801521,1743225039775,-500.0,0.00024657,2]
[356801522,1743225039785,-904.72956146,0.00024657,2]
[356801523,1743225039799,-707.82043854,0.00024657,2]
[356801524,1743225039809,-1305.21,0.00024657,2]
[356801525,1743225039819,-518.25724924,0.00024657,2]
[356801526,1743225039829,-500.0,0.00024657,2]
[356801527,1743225039840,-500.0,0.00024657,2]
[356801528,1743225039850,-557.1,0.00024657,2]
[356801529,1743225039860,-557.17,0.00024657,2]
[356801530,1743225039869,-500.0,0.00024657,2]
[356801531,1743225039878,-500.0,0.00024657,2]
[356801532,1743225039888,-500.0,0.00024657,2]
[356801533,1743225039897,-500.0,0.00024657,2]
[356801534,1743225039907,-589.42,0.00024657,2]
[356801535,1743225039916,-500.0,0.00024657,2]
[356801536,1743225039926,-500.0,0.00024657,2]
[356801537,1743225039936,-500.0,0.00024657,2]
[356801538,1743225039950,-1352.86,0.00024657,2]
[356801539,1743225039960,-634.46438116,0.00024657,2]
[356801540,1743225039970,-813.71,0.00024657,2]
[356801541,1743225039979,-500.0,0.00024657,2]
[356801542,1743225039990,-500.0,0.00024657,2]
[356801543,1743225040000,-500.0,0.00024657,2]
[356801544,1743225040010,-751.48,0.00024657,2]
[356801545,1743225040020,-500.0,0.00024657,2]
[356801546,1743225040030,-500.0,0.00024657,2]
[356801547,1743225040040,-500.0,0.00024657,2]
[356801548,1743225040050,-650.71,0.00024657,2]
[356801549,1743225040059,-500.0,0.00024657,2]
[356801550,1743225040069,-500.0,0.00024657,2]
[356801551,1743225040079,-500.0,0.00024657,2]
[356801552,1743225040088,-1690.13,0.00024657,2]
[356801553,1743225040099,-500.0,0.00024657,2]
[356801554,1743225040109,-500.0,0.00024657,2]
[356801555,1743225040119,-1288.68,0.00024657,2]
[356801556,1743225040129,-500.0,0.00024657,2]
[356801557,1743225040139,-500.0,0.00024657,2]
[356801559,1743225040149,-858.63,0.00024657,2]
[356801561,1743225040159,-683.82,0.00024657,2]
[356801562,1743225040169,-500.0,0.00024657,2]
[356801563,1743225040179,-500.0,0.00024657,2]
[356801564,1743225040189,-500.0,0.00024657,2]
[356801565,1743225040200,-500.0,0.00024657,2]
[356801566,1743225040210,-500.0,0.00024657,2]
[356801567,1743225040219,-1000.0,0.00024657,2]
[356801568,1743225040229,-726.57,0.00024657,2]
[356801569,1743225040239,-500.0,0.00024657,2]
[356801570,1743225040249,-500.52938196,0.00024657,2]
[356801571,1743225040259,-500.0,0.00024657,2]
[356801572,1743225040269,-503.90718411,0.00024657,2]
[356801573,1743225040279,-500.0,0.00024657,2]
[356801574,1743225040289,-500.0,0.00024657,2]
[356801575,1743225040299,-500.0,0.00024657,2]
[356801576,1743225040308,-1107.48,0.00024657,2]
[356801577,1743225040317,-500.0,0.00024657,2]
[356801578,1743225040327,-500.0,0.00024657,2]
[356801579,1743225040337,-500.0,0.00024657,2]
[356801580,1743225040346,-606.95456052,0.00024657,2]
[356801581,1743225040356,-610.26,0.00024657,2]
[356801582,1743225040366,-500.0,0.00024657,2]
[356801583,1743225040375,-500.0,0.00024657,2]
[356801584,1743225040386,-500.0,0.00024657,2]
[356801585,1743225040395,-560.81,0.00024657,2]
[356801586,1743225040405,-506.65716076,0.00024657,2]
[356801587,1743225040416,-505.38299299,0.00024657,2]
[356801588,1743225040426,-633.36995398,0.00024657,2]
[356801589,1743225040435,-642.01090861,0.00024657,2]
[356801590,1743225040445,-500.0,0.00024657,2]
[356801591,1743225040456,-500.0,0.00024657,2]
[356801592,1743225040466,-500.0,0.00024657,2]
[356801593,1743225040477,-501.46112752,0.00024657,2]
[356801594,1743225040486,-500.0,0.00024657,2]
[356801595,1743225040496,-504.48698047,0.00024657,2]
[356801596,1743225040507,-187.57083766,0.00024657,2]
[356801597,1743225040517,-500.0,0.00024657,2]
[356801598,1743225040527,-500.0,0.00024657,2]
[356801600,1743225040537,-500.0,0.00024657,2]
[356801601,1743225040547,-1731.01,0.00024657,2]
[356801602,1743225040556,-500.0,0.00024657,2]
[356801603,1743225040566,-500.0,0.00024657,2]
[356801604,1743225040576,-521.86,0.00024657,2]
[356801605,1743225040585,-1000.0,0.00024657,2]